bitfinex/quotes_SOLUSD_20241210
["timestamp","ask_amount","ask_price","bid_price","bid_amount"]
[1733835994954,0.2018932,212.91,212.81,38.01976459]
[1733835995529,20.12549,212.86,212.74,7.23273182]
[1733835995776,20.0,212.78,212.65,45.25249641]
[1733835996058,20.0,212.78,212.69,38.01976459]
[1733835996059,7.8168,212.75,212.69,38.01976459]
[1733835996262,7.8168,212.83,212.71,38.01976459]
[1733835996428,0.88116527,212.82,212.71,38.01976459]
[1733835996637,7.8168,212.83,212.73,38.01976459]
[1733835996843,7.8168,212.83,212.75,38.01976459]
[1733835997026,7.8168,212.83,212.72,0.12549]
[1733835997027,0.88107027,212.82,212.73,38.01976459]
[1733835997226,10.62060538,212.83,212.73,38.01976459]
[1733835998228,0.88103987,212.82,212.71,38.01976459]
[1733835998431,20.0,212.8,212.71,38.01976459]
[1733835998631,0.88124456,212.79,212.67,38.01976459]
[1733835999148,0.88124456,212.79,212.69,38.01976459]
[1733835999953,20.0,212.8,212.69,38.01976459]
[1733836000159,10.62060538,212.83,212.73,38.01976459]
[1733836000353,2.80380538,212.83,212.75,38.01976459]
[1733836000850,0.88101214,212.88,212.75,38.01976459]
[1733836001233,0.88101214,212.88,212.77,38.01976459]
[1733836001437,0.88101214,212.88,212.79,38.01976459]
[1733836001958,2.86073207,212.87,212.79,38.01976459]
[1733836002155,0.2018932,212.91,212.74,38.01976459]
[1733836002156,0.2018932,212.91,212.81,38.01976459]
[1733836002357,0.2018932,212.91,212.84,38.01976459]
[1733836003054,0.2018932,212.91,212.87,38.01976459]
[1733836003371,0.2018932,212.91,212.76,24.153354]
[1733836003372,0.2018932,212.91,212.89,38.01976459]
[1733836003534,0.2018932,212.91,212.88,38.01976459]
[1733836004373,0.2018932,212.91,212.9,38.01976459]
[1733836004532,0.2018932,212.91,212.89,38.01976459]
[1733836005344,0.2018932,212.91,212.9,38.01976459]
[1733836005757,0.2018932,212.91,212.9,38.27074459]
[1733836005953,0.2018932,212.91,212.9,62.17311859]
[1733836006148,0.2018932,212.91,212.9,38.01976459]
[1733836006752,0.2018932,212.91,212.9,62.17311859]
[1733836009056,8.005,213.14,212.93,20.0]
[1733836009270,0.8799007,213.13,213.04,38.01976459]
[1733836009453,8.005,213.14,213.04,38.01976459]
[1733836009646,10.75521526,213.14,213.04,38.01976459]
[1733836009850,0.87980836,213.11,213.01,38.01976459]
[1733836010067,0.87980836,213.11,213.0,38.01976459]
[1733836010270,0.87980836,213.11,213.02,38.01976459]
[1733836010779,0.55102191,213.1,212.96,38.01976459]
[1733836011004,0.55102191,213.1,212.87,16.8686]
[1733836011005,0.12549,213.08,212.94,38.01976459]
[1733836011150,0.12549,213.06,212.9,38.01976459]
[1733836011480,0.8803245,213.05,212.91,38.01976459]
[1733836011641,1.30585641,213.05,212.91,38.01976459]
[1733836011841,1.30585641,213.05,212.87,5.1247]
[1733836011842,23.776884,213.0,212.87,38.01976459]
[1733836012152,0.42553191,212.99,212.9,38.01976459]
[1733836012348,20.0,212.97,212.87,38.01976459]
[1733836012663,0.42553191,212.96,212.87,38.01976459]
[1733836012863,1.30603663,212.96,212.87,38.01976459]
[1733836013170,1.30617865,212.96,212.89,38.01976459]
[1733836013463,1.30617865,212.96,212.87,38.01976459]
[1733836013966,1.30617865,212.96,212.85,38.01976459]
[1733836014350,1.30617865,212.96,212.75,7.5461]
[1733836014351,20.0,212.92,212.83,38.01976459]
[1733836014663,20.0,212.87,212.79,38.01976459]
[1733836014849,0.88100815,212.86,212.74,38.01976459]
[1733836015048,31.601384,212.85,212.72,38.01976459]
[1733836015265,23.776884,212.83,212.72,38.01976459]
[1733836015465,0.88121881,212.82,212.72,38.01976459]
[1733836015666,1.30675072,212.82,212.72,38.01976459]
[1733836016261,1.30675072,212.82,212.7,38.01976459]
[1733836016460,20.0,212.8,212.7,38.01976459]
[1733836016766,23.776884,212.78,212.66,38.01976459]
[1733836016951,23.776884,212.78,212.64,38.01976459]
[1733836016952,20.0,212.75,212.64,38.01976459]
[1733836017271,1.30707212,212.74,212.64,38.01976459]
[1733836017848,23.776884,212.73,212.62,38.01976459]
[1733836018044,0.88162188,212.72,212.62,38.01976459]
[1733836018258,0.42553191,212.72,212.62,38.01976459]
[1733836018476,1.30712907,212.72,212.62,38.01976459]
[1733836018659,0.42553191,212.72,212.67,0.25098]
[1733836018972,0.42553191,212.72,212.71,0.25098]
[1733836019150,0.42553191,212.72,212.71,24.153354]
[1733836019472,0.42553191,212.72,212.71,72.17311859]
[1733836019791,0.42553191,212.72,212.71,34.153354]
[1733836020276,0.42553191,212.72,212.71,0.37647]
[1733836020656,0.42553191,212.72,212.7,38.01976459]
[1733836021378,0.42553191,212.72,212.66,38.01976459]
[1733836021581,0.42553191,212.72,212.68,38.01976459]
[1733836022275,0.42553191,212.72,212.7,38.01976459]
[1733836022657,0.42553191,212.72,212.68,38.01976459]
[1733836022858,0.42553191,212.72,212.66,38.01976459]
[1733836023073,0.42553191,212.72,212.64,38.01976459]
[1733836023377,0.42553191,212.72,212.65,38.01976459]
[1733836024399,0.42553191,212.72,212.68,38.01976459]
[1733836024597,0.42553191,212.72,212.65,38.01976459]
[1733836024776,0.42553191,212.72,212.62,38.01976459]
[1733836025098,0.42553191,212.72,212.58,38.01976459]
[1733836025099,1.30715918,212.72,212.58,38.01976459]
[1733836025375,1.30715918,212.72,212.5,8.3872]
[1733836025555,20.0,212.68,212.53,38.01976459]
[1733836025763,20.0,212.64,212.52,38.01976459]
[1733836025958,0.88200471,212.63,212.5,38.01976459]
[1733836026162,8.1679,212.62,212.5,38.01976459]
[1733836026382,0.88205279,212.63,212.56,38.01976459]
[1733836026578,0.42553191,212.61,212.59,38.01976459]
[1733836026755,0.42553191,212.61,212.55,38.01976459]
[1733836026962,0.42553191,212.61,212.6,38.01976459]
[1733836027162,0.42553191,212.61,212.6,38.27074459]
[1733836027383,3.191e-05,212.61,212.6,108.58008318]
[1733836027688,0.88153152,212.82,212.64,24.153354]
[1733836027886,0.88153152,212.82,212.74,38.01976459]
[1733836028097,0.85717634,212.82,212.76,38.01976459]
[1733836028395,8.1679,212.83,212.76,38.01976459]
[1733836028568,0.88110354,212.82,212.68,38.01976459]
[1733836028768,10.12549,212.81,212.62,38.01976459]
[1733836028969,0.12549,212.79,212.6,38.01976459]
[1733836029166,10.88156777,212.8,212.6,38.01976459]
[1733836029167,0.12549,212.77,212.6,38.01976459]
[1733836029486,0.88170765,212.79,212.65,38.01976459]
[1733836029660,3.68498892,212.79,212.67,38.01976459]
[1733836030493,3.68498892,212.79,212.66,38.01976459]
[1733836030662,0.12549,212.78,212.64,38.01976459]
[1733836030857,0.8815522,212.77,212.66,38.01976459]
[1733836031271,0.8815522,212.77,212.68,38.01976459]
[1733836031793,0.8815522,212.77,212.6,11.7588]
[1733836031794,0.8815522,212.77,212.66,38.01976459]
[1733836032319,20.0,212.73,212.64,38.01976459]
[1733836032469,0.88161544,212.72,212.62,38.01976459]
[1733836032677,20.0,212.68,212.58,38.01976459]
[1733836032876,0.8817581,212.67,212.56,38.01976459]
[1733836033486,0.8817581,212.67,212.5,5.2063]
[1733836033487,0.8817581,212.67,212.58,38.01976459]
[1733836033695,20.0,212.68,212.6,38.01976459]
[1733836033896,0.88173154,212.7,212.61,38.01976459]
[1733836034212,20.0,212.72,212.61,38.01976459]
[1733836034423,23.902374,212.7,212.59,38.01976459]
[1733836034589,20.0,212.65,212.55,38.01976459]
[1733836034782,0.88192178,212.67,212.57,38.01976459]
[1733836034997,0.88181685,212.74,212.61,38.01976459]
[1733836035209,8.0231,212.76,212.68,38.01976459]
[1733836035500,2.825472,212.82,212.72,38.01976459]
[1733836035712,2.825472,212.82,212.7,38.01976459]
[1733836035713,0.8811823,212.82,212.7,38.01976459]
[1733836035887,0.8811823,212.82,212.72,38.01976459]
[1733836036410,0.8811823,212.82,212.64,323.7569]
[1733836036411,0.8811823,212.82,212.71,38.14525459]
[1733836036702,0.8811823,212.82,212.69,38.01976459]
[1733836036905,0.8811823,212.82,212.73,38.01976459]
[1733836037586,0.8811823,212.82,212.71,38.01976459]
[1733836037783,20.0,212.8,212.69,58.01976459]
[1733836037981,0.88131117,212.79,212.65,38.01976459]
[1733836038804,0.88131117,212.79,212.6,7.8776]
[1733836038805,23.776884,212.78,212.67,38.01976459]
[1733836038998,0.88142789,212.77,212.67,38.01976459]
[1733836039299,23.902374,212.78,212.67,38.01976459]
[1733836039506,0.88138931,212.77,212.67,38.01976459]
[1733836039837,23.902374,212.74,212.63,38.01976459]
[1733836039998,20.0,212.75,212.67,38.01976459]
[1733836040307,20.0,212.75,212.59,5.2063]
[1733836040308,0.88139069,212.82,212.68,0.12549]
[1733836040514,0.88139069,212.82,212.71,38.01976459]
[1733836041413,0.88139069,212.82,212.68,0.12549]
[1733836041414,0.88139069,212.82,212.69,38.01976459]
[1733836041798,20.0,212.8,212.67,38.01976459]
[1733836042012,20.0,212.8,212.69,38.01976459]
[1733836042013,0.8814114,212.79,212.69,38.01976459]
[1733836042903,0.8814114,212.79,212.67,38.01976459]
[1733836043123,20.0,212.8,212.69,38.01976459]
[1733836043326,0.88123545,212.79,212.69,38.01976459]
[1733836044241,20.0,212.8,212.71,38.01976459]
[1733836044736,0.88122575,212.79,212.69,38.01976459]
[1733836044939,0.88122575,212.79,212.59,15.2063]
[1733836044940,20.12549,212.78,212.59,5.2063]
[1733836045104,20.12549,212.76,212.59,38.01976459]
[1733836045303,10.88156669,212.77,212.57,38.01976459]
[1733836045304,0.12549,212.7,212.57,38.01976459]
[1733836045509,20.0,212.68,212.55,38.01976459]
[1733836045728,0.88186972,212.67,212.57,38.01976459]
[1733836045952,20.0,212.68,212.6,38.01976459]
[1733836046150,8.0231,212.71,212.64,38.01976459]
[1733836046353,0.88157902,212.79,212.68,38.01976459]
[1733836046354,8.0231,212.78,212.68,38.01976459]
[1733836046854,0.88133621,212.77,212.68,38.01976459]
[1733836047159,8.0231,212.78,212.69,0.37647]
[1733836047450,0.88123508,212.77,212.66,38.01976459]
[1733836047832,20.0,212.75,212.64,38.01976459]
[1733836048040,0.8815209,212.74,212.59,38.01976459]
[1733836048236,20.8815209,212.74,212.59,38.01976459]
[1733836048461,23.776884,212.73,212.59,38.01976459]
[1733836048663,20.0,212.7,212.59,38.01976459]
[1733836048962,24.65869562,212.69,212.57,38.01976459]
[1733836049166,24.65869562,212.69,212.55,38.01976459]
[1733836049167,23.776884,212.65,212.55,38.01976459]
[1733836049347,20.0,212.61,212.51,38.01976459]
[1733836049545,0.88205046,212.6,212.51,38.01976459]
[1733836049926,20.0,212.61,212.51,38.01976459]
[1733836050258,7.6775,212.64,212.57,38.01976459]
[1733836050470,14.2357,212.73,212.59,38.01976459]
[1733836050471,7.6775,212.71,212.59,38.01976459]
[1733836050635,7.6775,212.71,212.61,38.01976459]
[1733836050830,2.79012643,212.76,212.67,38.01976459]
[1733836051061,7.6775,212.78,212.71,38.01976459]
[1733836051260,0.88123103,212.77,212.67,38.01976459]
[1733836051559,7.6775,212.78,212.71,38.01976459]
[1733836051736,2.86721423,212.81,212.72,38.01976459]
[1733836051933,8.5589411,212.84,212.73,38.01976459]
[1733836052157,0.85717634,212.83,212.73,38.01976459]
[1733836052375,1.73833395,212.83,212.74,38.01976459]
[1733836052661,1.73833395,212.83,212.72,38.01976459]
[1733836052958,1.73833395,212.83,212.73,38.01976459]
[1733836053161,0.12549,212.82,212.71,38.01976459]
[1733836053370,20.0,212.81,212.72,38.01976459]
[1733836053765,0.88133338,212.82,212.73,38.01976459]
[1733836054089,8.55863082,212.84,212.76,38.01976459]
[1733836054387,8.55863082,212.84,212.75,38.01976459]
[1733836054594,7.6775,212.84,212.77,38.01976459]
[1733836054891,7.6775,212.9,212.81,38.01976459]
[1733836055495,0.88074809,212.93,212.84,38.01976459]
[1733836055667,7.6775,212.98,212.87,38.01976459]
[1733836055668,0.88063087,212.97,212.87,38.01976459]
[1733836055997,0.88063087,212.97,212.9,38.01976459]
[1733836056206,0.88063087,212.97,212.88,38.01976459]
[1733836056859,0.88063087,212.97,212.86,38.01976459]
[1733836057062,0.88063087,212.97,212.88,38.01976459]
[1733836057695,7.6775,212.98,212.91,38.01976459]
[1733836057865,7.6775,212.98,212.92,38.01976459]
[1733836058071,0.12549,213.03,212.93,38.01976459]
[1733836058399,1.00586451,213.03,212.93,38.01976459]
[1733836058696,4.2367,213.08,212.97,38.01976459]
[1733836058697,0.88037071,213.07,212.97,38.01976459]
[1733836058878,0.88037071,213.07,212.99,38.01976459]
[1733836059290,0.88037071,213.07,212.91,5.0088]
[1733836059291,0.8801017,213.09,213.01,38.01976459]
[1733836059493,0.8801017,213.09,212.84,5.0088]
[1733836059494,13.68348259,213.09,212.84,5.0088]
[1733836059677,0.12549,212.99,212.84,38.01976459]
[1733836059998,1.00627279,212.99,212.84,38.01976459]
[1733836060604,1.00627279,212.99,212.88,38.01976459]
[1733836060901,1.00627279,212.99,212.86,38.01976459]
[1733836060902,20.0,212.95,212.86,38.01976459]
[1733836061339,20.0,212.95,212.77,22.00068]
[1733836061340,7.6775,213.0,212.9,38.01976459]
[1733836061530,0.88041046,212.99,212.9,38.01976459]
[1733836062108,7.6775,213.0,212.9,38.01976459]
[1733836062309,7.942,213.06,212.94,38.01976459]
[1733836062506,0.88027515,213.05,212.94,38.01976459]
[1733836062837,0.88028023,213.05,212.98,38.01976459]
[1733836062998,0.8801493,213.05,212.96,38.01976459]
[1733836063199,0.8801493,213.05,212.92,38.01976459]
[1733836063835,0.12549,213.04,212.9,38.01976459]
[1733836064006,23.902374,213.02,212.86,38.01976459]
[1733836064206,23.902374,213.0,212.86,38.01976459]
[1733836064436,23.902374,212.98,212.86,38.01976459]
[1733836064637,20.0,212.91,212.82,38.01976459]
[1733836064810,0.8808471,212.9,212.82,38.01976459]
[1733836065041,0.8808471,212.9,212.8,38.01976459]
[1733836065042,23.776884,212.89,212.8,38.01976459]
[1733836065246,23.776884,212.87,212.76,38.01976459]
[1733836065465,0.88100651,212.86,212.76,38.01976459]
[1733836065637,27.942,212.91,212.8,38.01976459]
[1733836065638,0.88100617,212.9,212.8,38.01976459]
[1733836065840,20.0,212.86,212.78,38.01976459]
[1733836066177,0.88098672,212.85,212.76,38.01976459]
[1733836066962,20.0,212.86,212.78,38.01976459]
[1733836067343,0.88094018,212.85,212.76,38.01976459]
[1733836067762,23.776884,212.84,212.74,38.01976459]
[1733836067934,0.88119301,212.85,212.76,38.01976459]
[1733836068338,0.88101958,212.87,212.78,38.01976459]
[1733836069070,0.8809327,212.9,212.8,38.01976459]
[1733836069236,7.942,212.91,212.82,38.01976459]
[1733836070169,0.8807816,212.9,212.8,38.01976459]
[1733836070536,0.8807816,212.9,212.76,38.01976459]
[1733836070738,20.0,212.88,212.76,38.01976459]
[1733836070971,0.42553192,212.89,212.8,38.01976459]
[1733836070972,0.88099925,212.89,212.8,38.01976459]
[1733836071142,0.42553192,212.87,212.8,38.01976459]
[1733836071647,0.42553192,212.87,212.82,38.01976459]
[1733836071869,0.42553192,212.87,212.83,0.12549]
[1733836072041,0.42553192,212.87,212.83,0.25098]
[1733836072371,0.42553192,212.87,212.86,38.01976459]
[1733836072947,0.42553192,212.87,212.84,38.01976459]
[1733836073145,0.42553192,212.87,212.82,38.01976459]
[1733836073972,0.42553192,212.87,212.8,38.01976459]
[1733836074382,0.42553192,212.87,212.82,38.01976459]
[1733836074945,0.42553192,212.87,212.8,38.01976459]
[1733836075753,0.42553192,212.87,212.78,38.01976459]
[1733836076180,20.0,212.86,212.78,38.01976459]
[1733836076486,0.42553192,212.87,212.74,38.01976459]
[1733836076487,0.88092216,212.88,212.8,38.01976459]
[1733836076851,23.776884,212.87,212.78,38.01976459]
[1733836077090,0.88102433,212.86,212.78,38.01976459]
[1733836077254,1.30655625,212.86,212.78,38.01976459]
[1733836077465,1.30655625,212.86,212.76,38.01976459]
[1733836077662,23.776884,212.85,212.76,38.01976459]
[1733836077881,0.88110456,212.84,212.74,38.01976459]
[1733836078090,1.30663648,212.84,212.74,38.01976459]
[1733836079292,0.42553192,212.84,212.76,38.01976459]
[1733836079454,0.42553192,212.84,212.77,0.12549]
[1733836079889,0.42553192,212.84,212.76,38.01976459]
[1733836080116,0.42553192,212.84,212.74,38.01976459]
[1733836080289,0.42553192,212.84,212.69,4.9439]
[1733836080290,0.42553192,212.84,212.76,38.01976459]
[1733836080796,0.42553192,212.84,212.77,0.12549]
[1733836081506,0.42553192,212.84,212.79,38.01976459]
[1733836081682,0.42553192,212.84,212.82,0.12549]
[1733836081887,0.42553192,212.84,212.83,58.39623459]
[1733836082106,0.42553192,212.84,212.83,82.17311859]
[1733836082323,0.42553192,212.84,212.83,120.19288318]
[1733836082601,0.42553192,212.84,212.83,87.00731859]
[1733836082771,0.42553192,212.84,212.83,63.23043459]
[1733836084389,0.42553192,212.84,212.83,87.00731859]
[1733836084697,0.42553192,212.84,212.83,63.23043459]
[1733836085500,0.42553192,212.84,212.83,58.01976459]
[1733836085692,0.42553192,212.84,212.81,38.01976459]
[1733836085896,0.42553192,212.84,212.77,38.01976459]
[1733836086101,0.88102925,212.83,212.73,38.01976459]
[1733836086602,0.88102925,212.83,212.69,4.8342]
[1733836086603,0.42553192,212.82,212.75,38.01976459]
[1733836087282,0.42553192,212.82,212.76,0.12549]
[1733836087515,0.42553192,212.82,212.81,0.12549]
[1733836088014,0.42553192,212.82,212.81,0.25098]
[1733836088196,0.42553192,212.82,212.81,0.37647]
[1733836088903,0.42553192,212.82,212.81,24.153354]
[1733836089712,0.42553192,212.82,212.81,62.17311859]
[1733836090102,3.192e-05,212.82,212.81,77.00731859]
[1733836090414,8.0759,213.01,212.91,0.25098]
[1733836090619,8.0759,213.01,212.93,38.01976459]
[1733836090807,0.88035714,213.0,212.89,38.01976459]
[1733836091201,0.88035714,213.0,212.91,38.01976459]
[1733836091608,23.776884,212.99,212.91,38.01976459]
[1733836092010,0.88035714,213.0,212.91,38.01976459]
[1733836092215,8.0759,213.01,212.92,38.01976459]
[1733836092416,0.88035668,213.0,212.92,38.01976459]
[1733836092617,8.0759,213.01,212.92,38.01976459]
[1733836093139,0.88036811,213.06,212.95,38.01976459]
[1733836093701,2.94585062,213.05,212.86,0.25098]
[1733836093901,2.94585062,213.05,212.94,38.01976459]
[1733836093902,0.88028759,213.04,212.94,38.01976459]
[1733836094104,0.88028759,213.04,212.96,38.01976459]
[1733836094329,7.9252,213.07,212.96,38.01976459]
[1733836094632,0.88011988,213.06,212.98,38.01976459]
[1733836095004,7.9252,213.07,213.0,38.01976459]
[1733836095200,0.88005018,213.11,213.02,38.01976459]
[1733836095409,0.85717634,213.1,213.02,38.01976459]
[1733836095608,0.88001635,213.09,213.0,38.01976459]
[1733836095904,0.85717634,213.08,213.0,38.01976459]
[1733836096930,0.88006634,213.07,212.98,38.01976459]
[1733836097926,0.88010621,213.08,213.0,38.01976459]
[1733836098129,1.45496792,213.12,213.02,38.01976459]
[1733836098308,1.45496792,213.12,213.06,38.01976459]
[1733836098309,0.5749028,213.12,213.06,38.01976459]
[1733836098515,0.5749028,213.12,212.96,38.01976459]
[1733836098516,0.5749028,213.12,213.11,38.01976459]
[1733836098712,0.5749028,213.12,213.11,38.14525459]
[1733836099038,0.5749028,213.12,213.11,38.27074459]
[1733836099538,0.5749028,213.12,213.11,62.17311859]
[1733836099750,4.88548938,213.31,213.14,20.0]
[1733836100031,0.87938938,213.31,213.22,38.01976459]
[1733836100409,8.22,213.32,213.24,38.01976459]
[1733836100609,8.22,213.32,213.26,38.01976459]
[1733836100828,0.5749028,213.33,213.19,0.25098]
[1733836100829,0.5749028,213.33,213.29,38.01976459]
[1733836101009,0.5749028,213.33,213.32,38.01976459]
[1733836101207,0.5749028,213.33,213.32,38.14525459]
[1733836101822,0.5749028,213.33,213.32,39.12794102]
[1733836102013,0.5749028,213.33,213.32,38.87696102]
[1733836102348,0.5749028,213.33,213.32,39.00245102]
[1733836102719,0.5749028,213.33,213.32,39.12794102]
[1733836103625,0.87850949,213.48,213.36,20.25098]
[1733836103817,0.8783952,213.5,213.43,38.01976459]
[1733836104012,1.45326733,213.54,213.44,38.01976459]
[1733836104219,1.45326733,213.54,213.46,38.01976459]
[1733836104220,0.5749028,213.54,213.46,38.01976459]
[1733836105523,0.5749028,213.54,213.49,0.12549]
[1733836105721,0.5749028,213.54,213.46,0.85663423]
[1733836105925,0.5749028,213.54,213.46,38.87639882]
[1733836106128,0.5749028,213.54,213.46,0.85663423]
[1733836106328,0.12549,213.51,213.36,38.01976459]
[1733836106551,0.12549,213.51,213.2,7.23273182]
[1733836106552,10.0,213.47,213.2,7.23273182]
[1733836106758,0.12549,213.4,213.29,38.01976459]
[1733836106921,43.776884,213.39,213.21,0.85763867]
[1733836107257,23.776884,213.29,213.21,0.85763867]
[1733836107460,0.87939829,213.28,213.21,0.85763867]
[1733836107620,20.87931796,213.33,213.21,38.87740326]
[1733836107815,20.87931796,213.33,213.23,38.01976459]
[1733836108032,23.776884,213.4,213.26,0.12549]
[1733836108262,0.87888189,213.39,213.29,38.01976459]
[1733836108418,0.87879451,213.4,213.31,38.01976459]
[1733836108763,8.22,213.44,213.32,38.01976459]
[1733836108764,0.87880925,213.43,213.32,38.01976459]
[1733836108932,0.87880925,213.43,213.2,8.1386]
[1733836108933,0.87880044,213.42,213.28,38.01976459]
[1733836109130,0.87880044,213.42,213.3,38.01976459]
[1733836109131,0.85717634,213.41,213.3,38.01976459]
[1733836109334,0.87878622,213.4,213.26,38.01976459]
[1733836109653,0.87878622,213.4,213.2,8.1386]
[1733836109654,0.12549,213.39,213.24,38.01976459]
[1733836109821,1.73618851,213.38,213.24,38.01976459]
[1733836110037,1.73618851,213.38,213.26,38.01976459]
[1733836110038,0.85717634,213.37,213.26,38.01976459]
[1733836110642,23.776884,213.39,213.28,38.01976459]
[1733836110854,8.22,213.44,213.28,38.01976459]
[1733836110855,20.0,213.36,213.28,38.01976459]
[1733836111058,0.87877385,213.43,213.32,38.01976459]
[1733836111447,0.87877385,213.43,213.26,20.0]
[1733836111650,0.12549,213.42,213.27,20.0]
[1733836111969,0.12549,213.4,213.24,38.01976459]
[1733836112148,0.12549,213.38,213.22,38.01976459]
[1733836112339,23.776884,213.34,213.2,38.01976459]
[1733836112539,20.0,213.31,213.16,38.01976459]
[1733836112843,0.8793138,213.3,213.16,38.01976459]
[1733836113047,20.0,213.26,213.12,38.01976459]
[1733836113247,0.87942809,213.25,213.1,38.01976459]
[1733836113457,0.87942809,213.25,213.08,38.01976459]
[1733836113458,20.0,213.21,213.08,38.01976459]
[1733836113797,0.87966966,213.2,213.08,38.01976459]
[1733836114135,0.87966966,213.2,213.06,38.01976459]
[1733836114360,23.902374,213.19,213.06,38.01976459]
[1733836114550,20.0,213.16,213.02,38.01976459]
[1733836114741,20.0,213.16,213.01,5.1646]
[1733836114742,23.902374,213.14,213.0,38.01976459]
[1733836115068,23.902374,213.14,212.91,5.0065]
[1733836115069,20.0,213.11,212.96,38.01976459]
[1733836115244,20.0,213.06,212.92,38.01976459]
[1733836115443,20.0,213.06,212.81,10.0]
[1733836115444,24.65720048,213.05,212.9,38.01976459]
[1733836115743,20.0,213.02,212.88,38.01976459]
[1733836115944,20.0,213.02,212.9,38.01976459]
[1733836116248,0.88030802,213.01,212.88,38.01976459]
[1733836116447,23.776884,213.0,212.86,38.01976459]
[1733836116764,0.88057318,212.99,212.86,38.01976459]
[1733836116936,0.88057318,212.99,212.89,38.01976459]
[1733836117278,20.0,213.07,212.95,38.01976459]
[1733836117459,0.88011798,213.06,212.95,38.01976459]
[1733836117671,0.88012272,213.09,212.95,38.01976459]
[1733836118069,1.90299327,213.24,212.97,38.01976459]
[1733836118070,3.70438702,213.13,212.97,38.01976459]
[1733836118275,21.73739042,213.12,212.96,23.902374]
[1733836118576,20.0,213.06,212.89,38.01976459]
[1733836118781,0.85717634,213.05,212.96,0.12549]
[1733836119099,0.85717634,213.05,213.0,0.12549]
[1733836119255,0.85717634,213.05,212.99,38.01976459]
[1733836119256,0.85717634,213.05,213.01,38.01976459]
[1733836119592,0.85717634,213.05,212.99,38.01976459]
[1733836119773,0.85717634,213.05,212.99,0.12549]
[1733836119955,0.85717634,213.05,212.99,0.25098]
[1733836120156,0.85717634,213.05,213.0,23.776884]
[1733836120358,0.85717634,213.05,213.01,0.12549]
[1733836120558,0.85717634,213.05,212.95,38.01976459]
[1733836120981,0.85717634,213.05,212.97,0.12549]
[1733836121157,0.85717634,213.05,213.0,23.776884]
[1733836121650,0.85717634,213.05,212.97,38.01976459]
[1733836122050,0.85717634,213.05,212.98,20.0]
[1733836122282,0.88006517,213.12,212.98,20.0]
[1733836122490,0.85717634,213.11,212.98,20.0]
[1733836122658,0.8800746,213.1,212.96,23.776884]
[1733836122852,20.0,213.09,212.94,23.776884]
[1733836123076,20.0,213.09,212.98,38.14525459]
[1733836123384,0.88002377,213.08,212.96,38.01976459]
[1733836123989,0.85717634,213.11,213.03,0.25098]
[1733836124185,0.85717634,213.11,213.07,24.027864]
[1733836124561,0.85717634,213.11,213.07,0.12549]
[1733836124991,0.85717634,213.11,213.1,0.12549]
[1733836125202,0.85717634,213.11,213.06,20.0]
[1733836125386,0.85717634,213.11,213.07,23.902374]
[1733836125569,0.85717634,213.11,213.1,44.027864]
[1733836125962,0.85717634,213.11,213.1,82.04762859]
[1733836126166,0.05542923,213.11,213.1,82.04762859]
[1733836126501,0.05542923,213.11,213.1,82.17311859]
[1733836126994,0.05542923,213.11,213.1,20.12549]
[1733836127370,0.05542923,213.11,213.1,82.17311859]
[1733836127566,0.05542923,213.11,213.1,82.04762859]
[1733836127879,0.05542923,213.11,213.1,20.12549]
[1733836128401,0.05542923,213.11,213.04,38.01976459]
[1733836129261,0.05542923,213.11,213.02,38.01976459]
[1733836130163,0.05542923,213.11,212.98,38.01976459]
[1733836130164,20.0,213.1,212.98,38.01976459]
[1733836130365,0.88001896,213.09,212.98,38.01976459]
[1733836130570,0.88001896,213.09,212.96,38.01976459]
[1733836130806,0.42553191,213.08,212.94,38.01976459]
[1733836130979,20.0,213.06,212.9,38.01976459]
[1733836131178,20.0,213.06,212.88,38.01976459]
[1733836131179,23.776884,213.04,212.88,38.01976459]
[1733836131494,0.88043443,213.03,212.88,38.01976459]
[1733836131708,1.30596634,213.03,212.89,0.12549]
[1733836132016,0.42553191,213.03,212.94,38.01976459]
[1733836132211,0.42553191,213.03,212.99,38.14525459]
[1733836132507,0.42553191,213.03,213.0,23.902374]
[1733836133273,0.02806492,213.03,213.02,0.12549]
[1733836133484,0.02806492,213.03,213.02,24.027864]
[1733836133897,0.02806492,213.03,213.02,24.153354]
[1733836134094,0.02806492,213.03,213.02,62.17311859]
[1733836135081,0.02806492,213.03,213.02,374.17311859]
[1733836135808,9.99995406,213.23,213.02,374.17311859]
[1733836135809,7.5902,213.31,213.19,20.0]
[1733836136008,0.8793227,213.3,213.17,38.01976459]
[1733836136175,0.8793227,213.3,213.2,20.0]
[1733836136501,2.86485818,213.33,213.21,38.01976459]
[1733836136707,0.87920926,213.38,213.22,0.12549]
[1733836136904,0.87920926,213.38,213.23,38.01976459]
[1733836137499,0.87920926,213.38,213.26,20.0]